[Event "53rd Mar Del Plata Open 2024"]
[Site "Mar Del Plata"]
[Date "2024.03.24"]
[Round "1.1"]
[White "Magioncalda, Jorge"]
[Black "Christiansen, Johan-Sebastian"]
[Result "0-1"]
[ECO "C55"]
[WhiteElo "1861"]
[BlackElo "2633"]
[Annotator "TA"]
[PlyCount "54"]
[EventDate "2024.03.23"]
[EventType "swiss"]
[EventCountry "ARG"]
[SourceTitle "playchess.com"]
[Source "ChessBase"]
[SourceQuality "1"]
[TimeControl "5400+30"]

{[%evp 9,54,24,34,39,38,-11,-7,-2,45,-56,-54,-64,-52,-89,-97,-98,-89,-102,-92,-126,-120,-236,-166,-152,-132,-129,-119,-261,-149,-257,-174,-558,-526,-791,-767,-818,-815,-791,-793,-886,-868,-2549,-2429,-29988,-29989,-29987,-3002]} 1. e4 {[%emt 0:00:10]} e5 {[%emt 0:00:17]} 2. Nf3 {[%emt 0:00:30]} Nc6 {[%emt 0:00:05]} 3. Bc4 {[%emt 0:02:14]} Nf6 {[%emt 0:00:07]} 4. d3 {[%emt 0:03:23]} h6 {[%emt 0:00:08]} 5. h3 {[%emt 0:03:18]} d6 {[%emt 0:00:10]} 6. c3 {[%emt 0:02:21]} g5 {[%emt 0:02:03]} 7. g4 {[%emt 0:12:43]} (7. Bb3 $14) 7... Bg7 {[%emt 0:00:29]} 8. Nbd2 {[%emt 0:02:13] The position is equal.} O-O {[%emt 0:05:14]} (8... a6 $11 {is superior.}) 9. Nf1 {[%emt 0:07:16]} (9. h4 $14) 9... d5 $15 {[%emt 0:00:47]} 10. exd5 {[%emt 0:02:34]} Nxd5 {[%emt 0:00:06]} 11. Bxd5 {[%emt 0:07:16]} Qxd5 {[%emt 0:00:10]} 12. Ne3 {[%emt 0:00:14]} Qd6 {[%emt 0:02:31]} 13. h4 {[%emt 0:08:35]} f6 {[%emt 0:05:23]} 14. d4 {[%emt 0:21:13]} exd4 {[%emt 0:10:57]} 15. cxd4 {[%emt 0:01:25]} (15. Nxd4 $17 Nxd4 16. Qxd4) 15... Nb4 {[%emt 0:00:53][%cal Bc6b4,Bb4d3,Bd3f4][%mdl 32]} 16. Bd2 {[%emt 0:05:50]} Nd3+ {[%emt 0:06:46]} 17. Kf1 {[%emt 0:00:10] [#] Strongly threatening Qb3+.} Nf4 {[%emt 0:00:02] Black has more active pieces.} ({Not} 17... Nxb2 18. Qb3+ Qe6 19. Qxb2 $16) 18. Bc3 {[%emt 0:11:50] This costs White the game.} (18. Kg1 $17) 18... b6 {[%emt 0:01:49]} (18... f5 $19 19. Ne5 fxg4 20. N5xg4 gxh4) 19. Qa4 {[%emt 0:01:08]} (19. Kg1 $17) 19... a5 {[%emt 0:00:09] ...Ba6+ would now be deadly.} 20. b4 $2 {[%emt 0:03:00]} (20. Re1) 20... Bb7 $19 {[%emt 0:07:31]} 21. Nf5 {[%emt 0:02:08]} Qe6 {[%emt 0:00:02]} 22. Re1 {[%emt 0:00:23] Wards off Qe2+} Qc4+ {[%emt 0:00:03]} 23. Kg1 {[%emt 0:00:54]} Bxf3 {[%emt 0:04:49] A strong pair of Bishops.} 24. Ne7+ {[%emt 0:00:43]} Kh8 {[%emt 0:00:16]} 25. Qd7 {[%emt 0:00:44]} Qxc3 {[%emt 0:00:23]} 26. Kh2 {[%emt 0:00:42]} Bxh1 {[%emt 0:00:37]} 27. Re3 {[%emt 0:00:21]} Qc2 {[%emt 0:00:39] Weighted Error Value: White=1.29/Black=0.18 (very precise) .  Mistake:       	White=6     	Black=2      Inaccurate:     	White=3     	Black=1      OK:         	White=3     	Black=6      Best:        	White=2     	Black=1} (27... Qb2 $142 28. Ng6+ Nxg6 29. Kxh1 Qxf2 (29... Qxa2 $2 30. Qc6 $19) 30. Qb5 Qxe3 (30... Qxh4+ $2 31. Kg2 $19) 31. Qf1 Nxh4 (31... Qxd4 {gets mated.} 32. bxa5 Rxa5 33. Qg2 Nxh4 34. Qe2 Qa1+ 35. Kh2 Rxa2 36. Qf2 Rxf2+ 37. Kg3 Rg2+ 38. Kh3 Qh1#) (31... Qe4+ 32. Kh2 axb4 33. Qf2 Nxh4 34. Kg3 Ra3+ 35. Kh2 Qxg4 36. Qf1 Nf3+ 37. Qxf3 Rxf3 38. Kh1 Rh3#) 32. Qg1 Qf3+ (32... Qe4+ 33. Kh2 Qe2+ 34. Kg3 Rfe8 35. Qf2 Re3+ 36. Kh2 Qxf2+ 37. Kh1 Rh3#) 33. Kh2 Rfe8 (33... axb4 34. a4 Rxa4 35. d5 Ra2+ 36. Qf2 Rxf2+ 37. Kg1 Qg2#) 34. bxa5 Re2+ 35. Qf2 Rxf2+ 36. Kg1 Qg2#) 0-1

[Event "53rd Mar Del Plata Open 2024"]
[Site "Mar Del Plata"]
[Date "2024.03.23"]
[Round "1.2"]
[White "Felgaer, Ruben"]
[Black "Barreira Vesco, Ulises"]
[Result "1-0"]
[ECO "B01"]
[WhiteElo "2565"]
[BlackElo "1858"]
[Annotator "TA"]
[PlyCount "51"]
[EventDate "2024.03.23"]
[EventType "swiss"]
[EventCountry "ARG"]
[SourceTitle "playchess.com"]
[Source "ChessBase"]
[SourceQuality "1"]
[TimeControl "5400+30"]

{[%evp 9,51,57,50,47,50,44,50,50,53,23,32,25,61,12,60,54,68,26,31,40,69,63,59,72,65,69,98,97,326,310,640,730,834,693,777,770,760,769,999,893,2571,1751,29992,29993]} 1. e4 {[%emt 0:00:05][%cal Be2e4,Be4d5][%mdl 32]} d5 {[%emt 0:00:44]} 2. exd5 {[%emt 0:00:08]} Nf6 {[%emt 0:00:13]} 3. d4 {[%emt 0:00:20]} Bg4 {[%emt 0:02:00]} 4. f3 {[%emt 0:00:38]} Bf5 {[%emt 0:00:50]} 5. Bb5+ {[%emt 0:01:04]} c6 {[%emt 0:01:52]} 6. dxc6 {[%emt 0:00:57]} Nxc6 {[%emt 0:00:24]} 7. Ne2 {[%emt 0:01:23]} e6 {[%emt 0:01:09]} 8. O-O {[%emt 0:04:31] White is slightly better.} Qb6 {[%emt 0:02:05]} 9. Nbc3 {[%emt 0:14:29]} Be7 {[%emt 0:03:42]} 10. Be3 {[%emt 0:02:29]} (10. g4 $5 Bg6 $8 11. h4 $11) 10... Rd8 {[%emt 0:03:11]} 11. Qc1 {[%emt 0:06:11]} (11. Bf2 $14 {deserves consideration.}) 11... Qa5 {[%emt 0:06:14]} (11... a6 $11 12. Ba4 O-O) 12. a3 {[%emt 0:06:53]} a6 {[%emt 1:14:06]} 13. Ba4 {[%emt 0:57:52]} b5 {[%emt 0:00:30]} 14. Bb3 {[%emt 0:00:30]} h6 {[%emt 0:00:30] [#]} 15. d5 $1 {[%emt 0:00:30]} exd5 {[%emt 0:00:30] aiming for ...d4.} 16. Nd4 {[%emt 0:00:30]} Nxd4 {[%emt 0:00:00]} 17. Bxd4 {[%emt 0:00:30]} Be6 {[%emt 0:00:00]} 18. Qe3 {Strongly threatening a4.} Rb8 $2 {[%emt 0:01:30] [#] A mistake that costs the game.} (18... Qc7 $16) 19. f4 $1 $18 {[%emt 0:01:00][%cal Bf3f4,Bf4f5][%mdl 32] f5 is the strong threat.} Kf8 $2 {[%emt 0:00:30]} (19... Ng4 20. Qe2 Bf6) 20. f5 {[%emt 0:00:30]} Bd7 {[%emt 0:00:30]} 21. Nxd5 {[%emt 0:00:30]} ({Less strong is} 21. Bxd5 Bd6 $16) 21... Nxd5 {[%emt 0:00:30]} 22. Qe5 {[%emt 0:00:30]} Nf6 {[%emt 0:00:30]} 23. Qxb8+ {[%emt 0:00:30]} Be8 {[%emt 0:00:30]} 24. Rfe1 {[%emt 0:00:30][%cal Oe1e7] White threatens Rxe7! and mate.} Qd2 {[%emt 0:00:30]} 25. Rad1 {[%emt 0:00:30]} Qg5 {[%emt 0:00:30] [#]} 26. Rxe7 $1 {[%emt 0:00:30] Weighted Error Value: White=0.22 (precise) /Black=0.86.  Loses game:     	---       	Black=1      Mistake:       	White=1     	Black=2      Inaccurate:     	White=2     	Black=3      OK:         	White=4     	Black=6      Best:        	White=1     	---        Strong:       	White=1     	---} 1-0

[Event "53rd Mar Del Plata Open 2024"]
[Site "Mar Del Plata"]
[Date "2024.03.24"]
[Round "1.3"]
[White "Tristan, Leonardo"]
[Black "Etchevest, Marcelo"]
[Result "1-0"]
[ECO "A45"]
[WhiteElo "2521"]
[BlackElo "1854"]
[Annotator "TA"]
[PlyCount "57"]
[EventDate "2024.03.23"]
[EventType "swiss"]
[EventCountry "ARG"]
[SourceTitle "playchess.com"]
[Source "ChessBase"]
[SourceQuality "1"]
[TimeControl "5400+30"]

{[%evp 9,57,47,74,69,70,61,97,81,93,82,107,58,80,72,120,121,122,94,135,127,140,150,213,211,192,111,169,177,196,194,309,308,354,327,324,324,283,207,199,208,352,342,887,925,940,939,1115,1065,29989,29990]} 1. d4 {[%emt 0:00:03]} Nf6 {[%emt 0:11:04]} 2. Bg5 {[%emt 0:00:24]} Ne4 {[%emt 0:00:20]} 3. Bf4 {[%emt 0:00:09]} g6 {[%emt 0:01:30]} 4. f3 {[%emt 0:04:57]} Nf6 {[%emt 0:00:53]} 5. e4 {[%emt 0:00:11]} Bg7 {[%emt 0:00:29]} 6. Nc3 {[%emt 0:02:43]} c6 {[%emt 0:01:27]} 7. Qd2 {[%emt 0:01:43] White is more active.} Qa5 {[%emt 0:04:10]} 8. O-O-O {[%emt 0:05:06] White is better.} d6 {[%emt 0:01:33]} 9. Kb1 {[%emt 0:06:49]} Be6 {[%emt 0:08:51]} 10. g4 {[%emt 0:15:54]} ({White should try} 10. a3 $16) 10... Na6 {[%emt 0:01:56]} 11. Nge2 {[%emt 0:08:05]} Nc7 {[%emt 0:08:48]} (11... h5 $142) 12. Nc1 $16 {[%emt 0:06:10]} a6 {[%emt 0:06:29]} 13. Nb3 {[%emt 0:15:44]} Qb6 {[%emt 0:01:08]} 14. Be3 {[%emt 0:01:23]} Bxb3 {[%emt 0:05:48]} 15. axb3 {[%emt 0:01:09]} Nb5 {[%emt 0:04:29]} (15... Qa5 $16 16. h4 h6) 16. Na4 $18 {[%emt 0:03:32]} Qc7 {[%emt 0:02:13] [#]} 17. e5 {[%emt 0:04:09]} Nd7 {[%emt 0:05:13]} (17... dxe5 $16 18. dxe5 Nd5) 18. f4 {[%emt 0:00:54]} e6 {[%emt 0:09:02]} 19. h4 {[%emt 0:04:12]} h5 {[%emt 0:08:10]} (19... c5 {was worth a try.}) 20. gxh5 {[%emt 0:02:21]} gxh5 {[%emt 0:02:15]} 21. Bg2 {[%emt 0:03:56]} O-O-O {[%emt 0:04:21]} 22. c4 {[%emt 0:00:26]} dxe5 {[%emt 0:04:24]} 23. cxb5 {[%emt 0:09:42]} axb5 {[%emt 0:00:07]} 24. Nc3 {[%emt 0:00:05][%cal Oc3b5,Ba4c3,Bc3e4,Be4d6,Bd6f7][%mdl 32] [#] Nxb5! would now be deadly.} Qa5 {[%emt 0:04:11]} (24... exd4 $142 25. Bxd4 Bxd4) 25. Ne4 {[%emt 0:01:15]} ({But not} 25. dxe5 Nxe5 26. Qc2 Ng4 $18) ({Don't do} 25. b4 Qxb4 26. Ne4 (26. dxe5 Nxe5 $14) 26... Qe7 $18) 25... Qa6 $2 {[%emt 0:00:43]} (25... Qxd2 26. Bxd2 Nf6 27. dxe5 Ng4) 26. Nd6+ {[%emt 0:00:31]} Kc7 {[%emt 0:00:18]} 27. dxe5 {[%emt 0:00:36]} Nxe5 {[%emt 0:00:47]} 28. fxe5 {[%emt 0:00:06]} Ra8 {[%emt 0:01:34]} 29. Nxf7 {[%emt 0:00:23] Weighted Error Value: White=0.16 (very precise) /Black=0.67.  Mistake:       	White=2     	Black=6      Inaccurate:     	---       	Black=2      OK:         	White=5     	Black=4      Best:        	White=2     	---} 1-0

[Event "53rd Mar Del Plata Open 2024"]
[Site "Mar Del Plata"]
[Date "2024.03.23"]
[Round "1.4"]
[White "Acosta, Pablo Ismael"]
[Black "Fuxz, Diego"]
[Result "1-0"]
[ECO "C68"]
[WhiteElo "2463"]
[BlackElo "1848"]
[Annotator "TA"]
[PlyCount "59"]
[EventDate "2024.03.23"]
[EventType "swiss"]
[EventCountry "ARG"]
[SourceTitle "playchess.com"]
[Source "ChessBase"]
[SourceQuality "1"]
[TimeControl "5400+30"]

{[%evp 13,59,5,5,8,0,0,0,0,-1,0,12,4,20,13,41,34,204,211,285,278,277,281,468,381,376,373,522,525,519,521,569,571,568,569,726,715,812,793,798,804,1161,928,955,954,2822,2518,29992,29993]} 1. e4 {[%emt 0:00:08]} e5 {[%emt 0:01:00]} 2. Nf3 {[%emt 0:00:08]} Nc6 {[%emt 0:00:13]} 3. Bb5 {[%emt 0:00:11]} a6 {[%emt 0:00:26]} 4. Bxc6 {[%emt 0:00:34]} dxc6 {[%emt 0:00:08]} 5. Nc3 {[%emt 0:00:06]} Qf6 {[%emt 0:04:36]} 6. d4 {[%emt 0:03:26]} exd4 {[%emt 0:00:17]} 7. Qxd4 {[%emt 0:02:39]} Qxd4 {[%emt 0:00:05]} 8. Nxd4 {[%emt 0:00:05]} Bd7 {[%emt 0:03:42]} 9. Be3 {[%emt 0:02:51]} O-O-O {[%emt 0:05:30]} 10. O-O-O {[%emt 0:00:25] The position is equal.} Ne7 {[%emt 0:07:00]} 11. h4 {[%emt 0:06:08]} b6 {[%emt 0:07:28]} 12. h5 {[%emt 0:01:14]} h6 {[%emt 0:00:20]} 13. f3 {[%emt 0:03:16]} Kb7 {[%emt 0:06:40]} 14. g4 {[%emt 0:02:06]} f6 $2 {[%emt 0:01:31] [#] Loses the game.} (14... Bc8 $14) 15. Ne6 $1 $18 {[%emt 0:01:34][%mdl 512]} Kc8 {[%emt 0:02:43]} (15... Bxe6 16. Rxd8) 16. Nxd8 {[%emt 0:01:42]} Kxd8 {[%emt 0:00:05]} 17. Ne2 {[%emt 0:00:17][%cal Bc3e2,Be2f4,Bf4e6,Be6c7][%mdl 32]} Kc8 $2 {[%emt 0:02:20]} (17... Nc8 {was worth a try.} 18. Nf4 Bd6) 18. Nf4 {[%emt 0:00:47]} c5 {[%emt 0:03:51]} 19. Rh2 {[%emt 0:00:51][%cal Bh1h2,Bh2d2,Bd2d8][%mdl 32] [#] aiming for Rhd2.} Be8 {[%emt 0:04:48]} 20. Rhd2 {[%emt 0:03:59]} Nc6 {[%emt 0:01:37][%cal Be7c6,Bc6d4,Bd4f3][%mdl 32] Prevents Rd8+.} 21. Ne6 {[%emt 0:00:30][%cal Od2d8] And now Rd8+! would win.} Kb7 {[%emt 0:02:59]} 22. Bf4 {[%emt 0:02:13]} Nd4 {[%emt 0:05:05]} 23. Nxc7 {[%emt 0:03:55]} Bc6 {[%emt 0:02:26]} 24. c3 {[%emt 0:00:39]} Nxf3 {[%emt 0:01:49]} 25. Rd8 {[%emt 0:00:11]} g5 {[%emt 0:09:16]} 26. hxg6 {[%emt 0:00:58] Ne6 is the strong threat.} Bg7 {[%emt 0:00:33]} 27. Rxh8 {[%emt 0:00:30]} Bxh8 {[%emt 0:00:04]} 28. Rd8 {[%emt 0:00:10]} Ne5 {[%emt 0:00:26]} 29. Bxe5 {[%emt 0:00:16]} fxe5 {[%emt 0:00:06]} 30. Rxh8 {[%emt 0:00:08] Weighted Error Value: White=0.08 (flawless) /Black=0.95.  Loses game:     	---       	Black=1      Mistake:       	---       	Black=1      Inaccurate:     	---       	Black=3      OK:         	White=10    	Black=6      Best:        	White=1     	---        Brilliant:      	White=1     	---} 1-0

[Event "53rd Mar Del Plata Open 2024"]
[Site "Mar Del Plata"]
[Date "2024.03.23"]
[Round "1.5"]
[White "Spata, German"]
[Black "Vecchio, Raul Antonio"]
[Result "1-0"]
[ECO "A44"]
[WhiteElo "2421"]
[BlackElo "1848"]
[Annotator "TA"]
[PlyCount "78"]
[EventDate "2024.03.23"]
[EventType "swiss"]
[EventCountry "ARG"]
[SourceTitle "playchess.com"]
[Source "ChessBase"]
[SourceQuality "1"]
[TimeControl "5400+30"]

{[%evp 12,78,102,69,85,75,74,58,66,63,73,66,67,65,67,66,75,41,43,25,54,68,72,64,67,70,103,102,200,185,204,182,162,102,199,194,184,185,172,211,239,5,18,16,273,-10,-16,-128,-114,-124,412,124,133,138,129,128,114,121,699,680,1007,950,29979,29980,29992,29993,29995,29996,29996]} 1. d4 {[%emt 0:00:44]} c5 {[%emt 0:00:05]} 2. d5 {[%emt 0:00:19]} e5 {[%emt 0:00:04]} 3. c4 {[%emt 0:01:59]} d6 {[%emt 0:00:12]} 4. e4 {[%emt 0:00:14]} g6 {[%emt 0:00:05]} 5. Nc3 {[%emt 0:00:20]} Bg7 {[%emt 0:00:04]} 6. Be2 {[%emt 0:00:47]} Ne7 {[%emt 0:00:04]} 7. Nf3 {[%emt 0:02:22][%cal Bg1f3,Bf3e1,Be1d3][%mdl 32]} a6 {[%emt 0:00:16]} 8. a3 {[%emt 0:00:39]} O-O {[%emt 0:00:49]} 9. O-O {[%emt 0:00:38]} h6 {[%emt 0:00:54] White is slightly better.} 10. b4 {[%emt 0:00:22]} b6 {[%emt 0:00:30]} 11. Ne1 {[%emt 0:05:00]} f5 {[%emt 0:00:20]} 12. f3 {[%emt 0:01:20]} Nd7 {[%emt 0:07:11]} 13. Nd3 {[%emt 0:01:08]} Nf6 {[%emt 0:00:45]} 14. bxc5 {[%emt 0:01:59]} bxc5 {[%emt 0:00:10]} 15. Be3 {[%emt 0:02:41]} f4 {[%emt 0:00:09]} 16. Bf2 {[%emt 0:00:25]} g5 {[%emt 0:00:11]} 17. Rb1 {[%emt 0:02:19]} Bd7 {[%emt 0:04:18]} 18. Qb3 {[%emt 0:12:00]} Ng6 {[%emt 0:06:57]} 19. Qb6 {[%emt 0:01:40]} Qe7 {[%emt 0:00:04] [#]} (19... Bc8 $16 20. Qxd8 Rxd8) 20. Nxc5 $1 $18 {[%emt 0:01:00][%mdl 512]} dxc5 {[%emt 0:01:18]} 21. Bxc5 {[%emt 0:00:03]} Qd8 {[%emt 0:00:41]} 22. Bf2 {[%emt 0:08:12]} (22. Bxf8 $18 Bxf8 23. d6) 22... Qe8 {[%emt 0:01:57]} (22... g4 $16) 23. c5 {[%emt 0:01:08][%cal Bc4c5,Bc5c6][%mdl 32]} g4 {[%emt 0:01:05]} 24. c6 {[%emt 0:00:17]} (24. Bxa6 gxf3 25. gxf3 Bh3 $11) 24... gxf3 {[%emt 0:02:16]} 25. Bxf3 {[%emt 0:01:55]} (25. cxd7 $2 Nxd7 (25... fxe2 $2 26. dxe8=R exf1=R+ 27. Kxf1 $18) 26. Qb3 Rb8 $19 (26... fxe2 $2 27. Nxe2 Nf6 28. Qd3 $19)) 25... Bg4 {[%emt 0:00:13] [#]} 26. d6 $2 {[%emt 0:02:32]} (26. Bxg4 $1 $18 Nxg4 27. d6) 26... Bxf3 $11 {[%emt 0:08:45]} 27. gxf3 {[%emt 0:00:03] Strongly threatening d7.} Kh8 $2 {[%emt 0:00:24][%mdl 8192]} (27... Kh7 $1 $11 {and Black stays safe.}) 28. Rbd1 $2 {[%emt 0:27:20]} ({Better is} 28. d7 $18 Qe6 29. Rfd1) 28... Qe6 {[%emt 0:01:32]} 29. d7 {[%emt 0:01:39]} (29. c7 $1 $11 {remains equal.} Qh3 30. a4 (30. d7 $2 Nxd7 31. Qxg6 Rg8 $17)) 29... Qh3 $17 {[%emt 0:00:32]} 30. Be1 {[%emt 0:05:07] [#]} (30. d8=B $2 Ng4 (30... Qxf3 31. Bc5 $11) 31. Rfe1 Nxh2 $19 (31... Qxh2+ $2 32. Kf1 $19)) 30... Rab8 {[%emt 0:00:51][%mdl 8192]} (30... Rg8 $1 $17 {( -> ...Bf8)} 31. d8=Q (31. d8=N $2 Bf8 $19) 31... Raxd8 32. Qxd8 (32. Rxd8 $2 Bf8 $19) 32... Ne7 (32... Rxd8 33. Rxd8+ Kh7 34. c7 $11)) 31. Qf2 $2 {[%emt 0:03:19] Active counter play!} (31. d8=R $2 Rxb6 32. R8d6 Rc8 $19) (31. Qxa6 Ne7 $14) (31. d8=Q $18 {and the rest is easy.} Rxb6 32. Qxb6) 31... Rbd8 {[%emt 0:00:28]} 32. Qg2 $36 {[%emt 0:06:41][%mdl 2048] White is in control. Really sharp!} Qe6 {[%emt 0:06:02]} (32... Qh5 33. Nd5 Nxd7 34. Ba5 $11 (34. cxd7 Rxd7 35. Kh1 Rg8 $14)) 33. Qxg6 {[%emt 0:10:48]} Qxc6 {[%emt 0:57:48][%cal Of8g8]} 34. Nd5 {[%emt 0:00:00] Threatens to win with Bh4.} Qc5+ $2 {[%emt 0:00:00][%mdl 8192]} (34... Qxd7 $16 35. Ba5 Rb8) 35. Kh1 $18 {[%emt 0:00:00]} Nxd5 {[%emt 0:00:00]} 36. Rxd5 {[%emt 0:00:00]} Qxa3 {[%emt 0:00:00]} 37. Bh4 {[%emt 0:00:00] White mates.} Qa4 {[%emt 0:00:00]} 38. Bxd8 {[%emt 0:00:00]} Rxd8 {[%emt 0:00:00]} 39. Rg1 {[%emt 0:00:00][%csl Gg1][%cal Rg6g7]} Rxd7 {[%emt 0:03:00] Weighted Error Value: White=0.47/Black=0.73.  Loses game:     	---       	Black=3      Missed win:     	White=3     	---        Mistake:       	White=2     	Black=2      Inaccurate:     	White=1     	Black=3      OK:         	White=8     	Black=5      Best:        	White=4     	Black=3      Brilliant:      	White=1     	---} 1-0

[Event "53rd Mar Del Plata Open 2024"]
[Site "Mar Del Plata"]
[Date "2024.03.24"]
[Round "1.6"]
[White "Marrujo Pardo, Mauricio Emmanuel"]
[Black "Casas, Nicolas"]
[Result "1-0"]
[ECO "B01"]
[WhiteElo "2337"]
[BlackElo "1845"]
[Annotator "RC"]
[PlyCount "57"]
[EventDate "2024.03.23"]
[EventType "swiss"]
[EventCountry "ARG"]
[SourceTitle "playchess.com"]
[Source "ChessBase"]
[SourceQuality "1"]
[TimeControl "5400+30"]

1. e4 {[%emt 0:00:03]} d5 {[%emt 0:00:14]} 2. exd5 {[%emt 0:00:06]} Qxd5 {[%emt 0:00:09]} 3. Nc3 {[%emt 0:00:04]} Qd8 {[%emt 0:00:28]} 4. d4 {[%emt 0:01:19]} e6 {[%emt 0:03:00]} 5. Nf3 {[%emt 0:04:05]} Nf6 {[%emt 0:00:33]} 6. Bc4 {[%emt 0:09:02]} c6 {[%emt 0:05:11]} 7. O-O {[%emt 0:00:41]} Be7 {[%emt 0:00:36]} 8. Qe2 {[%emt 0:00:07]} O-O {[%emt 0:07:18]} 9. Rd1 {[%emt 0:02:21]} Nbd7 {[%emt 0:03:26]} 10. a4 {[%emt 0:05:11]} Nb6 {[%emt 0:03:58]} 11. Ba2 {[%emt 0:00:28]} Nbd5 {[%emt 0:01:44]} 12. Nb1 {[%emt 0:01:47]} b6 {[%emt 0:07:04]} 13. Ne5 {[%emt 0:11:17]} Bb7 {[%emt 0:06:52]} 14. c4 {[%emt 0:00:27]} Nb4 {[%emt 0:01:00]} 15. Bb3 {[%emt 0:00:06]} a5 {[%emt 0:00:24]} 16. Nc3 {[%emt 0:00:08]} Qc8 {[%emt 0:03:29]} 17. Bg5 {[%emt 0:07:15]} h6 {[%emt 0:00:24]} 18. Bh4 {[%emt 0:00:22]} Re8 {[%emt 0:00:31]} 19. Rac1 {[%emt 0:06:34]} Nd7 {[%emt 0:15:06]} 20. Bxe7 {[%emt 0:05:54]} Rxe7 {[%emt 0:00:16]} 21. Ne4 {[%emt 0:00:19]} Nxe5 {[%emt 0:00:42]} 22. dxe5 {[%emt 0:14:12]} c5 {[%emt 0:03:17]} 23. Rc3 {[%emt 0:06:55]} Qc6 {[%emt 0:05:40]} 24. Nf6+ {[%emt 0:00:25]} Kh8 {[%emt 0:05:47]} 25. Rg3 {[%emt 0:00:59]} Qc8 {[%emt 0:04:28]} 26. Qg4 {[%emt 0:04:25]} Qf8 {[%emt 0:01:41]} 27. Nd7 {[%emt 0:00:12]} Qg8 {[%emt 0:01:48]} 28. Nxb6 {[%emt 0:02:13]} Rae8 {[%emt 0:01:21]} 29. Nd7 {[%emt 0:01:13]} 1-0

[Event "53rd Mar Del Plata Open 2024"]
[Site "Mar Del Plata"]
[Date "2024.03.24"]
[Round "1.7"]
[White "Parma, Pamela"]
[Black "Espinoza Palomino, Willyam"]
[Result "0-1"]
[ECO "A46"]
[WhiteElo "1847"]
[BlackElo "2400"]
[Annotator "TA"]
[PlyCount "50"]
[EventDate "2024.03.23"]
[EventType "swiss"]
[EventCountry "ARG"]
[SourceTitle "playchess.com"]
[Source "ChessBase"]
[SourceQuality "1"]
[TimeControl "5400+30"]

{[%evp 9,50,-8,5,14,12,9,50,15,12,6,12,6,0,4,7,-14,-9,-39,-35,-34,0,-22,0,-89,-99,-162,-159,-418,-354,-349,-347,-327,-335,-338,-324,-483,-87,-506,-489,-29989,-29990,-29990,-29991]} 1. d4 {[%emt 0:00:28]} Nf6 {[%emt 0:00:49]} 2. Bf4 {[%emt 0:00:33]} e6 {[%emt 0:01:51]} 3. e3 {[%emt 0:00:35]} c5 {[%emt 0:00:07]} 4. Nf3 {[%emt 0:00:36]} Nc6 {[%emt 0:00:12]} 5. c3 {[%emt 0:00:52]} Be7 {[%emt 0:00:50]} 6. h3 {[%emt 0:00:15]} O-O {[%emt 0:00:39]} 7. Nbd2 {[%emt 0:01:14]} d6 {[%emt 0:00:38]} 8. Be2 {[%emt 0:02:28] White is slightly better.} b6 {[%emt 0:17:00]} 9. O-O {[%emt 0:07:25]} Bb7 {[%emt 0:04:40]} 10. a4 {[%emt 0:05:32]} d5 {[%emt 0:11:09]} 11. Ne5 {[%emt 0:06:10]} Nxe5 {[%emt 0:03:06]} 12. dxe5 {[%emt 0:00:30]} Nd7 {[%emt 0:03:42]} 13. Bh2 {[%emt 0:17:32]} Qc7 {[%emt 0:05:41]} 14. f4 {[%emt 0:01:59]} f6 {[%emt 0:04:01][%cal Rf6e5]} 15. Bg4 {[%emt 0:01:47]} Qc6 {[%emt 0:03:01]} 16. e4 {[%emt 0:33:11]} dxe4 $17 {[%emt 0:07:29]} 17. exf6 {[%emt 0:10:27]} (17. Nc4 $17) 17... Nxf6 $19 {[%emt 0:00:29]} 18. f5 $2 {[%emt 0:01:00] [#]} (18. Nc4 $17) 18... Nxg4 {[%emt 0:04:40]} 19. Qxg4 {[%emt 0:00:54]} exf5 {[%emt 0:10:35]} 20. Rxf5 {[%emt 0:01:04]} Rxf5 {[%emt 0:00:21]} 21. Qxf5 {[%emt 0:00:01]} Rf8 {[%emt 0:00:08]} ({Don't play} 21... e3 22. Nf3 $19) 22. Qxe4 {[%emt 0:00:32]} (22. Qh5 {is a better defense.}) 22... Bg5 $2 $40 {[%emt 0:03:08][%mdl 128] White is in trouble.} (22... Qxe4 $19 23. Nxe4 Bxe4) 23. Qc4+ $2 {[%emt 0:01:58][%mdl 8192]} (23. Qxc6 $17 {nothing else works.} Be3+ (23... Bxc6 24. Nc4 $17) 24. Kh1 Bxc6 25. Nc4) 23... Kh8 {[%emt 0:01:42]} 24. Qe2 {[%emt 0:01:15] [#]} (24. Ne4 $19) 24... Be3+ $1 {[%emt 0:00:09][%mdl 512] A strong pair of Bishops.} 25. Kh1 {[%emt 0:01:33]} Rf2 {[%emt 0:00:12] Weighted Error Value: White=1.21/Black=0.34.  Loses game:     	White=2     	---        Missed win:     	---       	Black=1      Mistake:       	White=4     	---        Inaccurate:     	White=2     	Black=2      OK:         	White=5     	Black=7      Best:        	---       	Black=1      Brilliant:      	---       	Black=1} 0-1